[Event "Titled Tuesday Blitz May 23 Early 2023"]
[White "Hua, Lefong"]
[Black "Kotepalli, Sai Nirupama"]
[WhiteFideId "2602253"]
[BlackFideId "5039444"]
[WhiteElo "2656"]
[BlackElo "2351"]
[Result "0-1"]
[Round "01"]
[TimeControl "180+2"]
[Date "2023.05.23"]
[WhiteClock "0:00:20"]
[BlackClock "0:00:12"]

1. d4 {[%clk 0:03:00]}  g6 {[%clk 0:02:42]} 2. c4 {[%clk 0:02:59]}  Bg7 {[%clk 0:02:42]} 3. e4 {[%clk 0:03:00]}  d6 {[%clk 0:02:30]} 4. f4 {[%clk 0:02:59]}  Nf6 {[%clk 0:02:28]} 5. Nc3 {[%clk 0:02:59]}  O-O {[%clk 0:02:28]} 6. Nf3 {[%clk 0:02:59]}  c5 {[%clk 0:02:26]} 7. d5 {[%clk 0:02:59]}  a6 {[%clk 0:02:25]} 8. Bd3 {[%clk 0:02:56]}  Re8 {[%clk 0:02:25]} 9. O-O {[%clk 0:02:49]}  e6 {[%clk 0:02:24]} 10. e5 {[%clk 0:02:44]}  dxe5 {[%clk 0:02:19]} 11. fxe5 {[%clk 0:02:44]}  Ng4 {[%clk 0:02:14]} 12. Bg5 {[%clk 0:02:40]}  Qb6 {[%clk 0:02:06]} 13. Ne4 {[%clk 0:02:30]}  exd5 {[%clk 0:02:00]} 14. Nd6 {[%clk 0:02:22]}  Rf8 {[%clk 0:01:49]} 15. Be7 {[%clk 0:02:09]}  Ne3 {[%clk 0:01:39]} 16. Qe2 {[%clk 0:02:07]}  Nxf1 {[%clk 0:01:38]} 17. Rxf1 {[%clk 0:02:07]}  Be6 {[%clk 0:01:33]} 18. Ng5 {[%clk 0:01:53]}  Nd7 {[%clk 0:01:25]} 19. Bxf8 {[%clk 0:01:32]}  Rxf8 {[%clk 0:01:20]} 20. Ndxf7 {[%clk 0:01:00]}  Bxf7 {[%clk 0:00:38]} 21. e6 {[%clk 0:00:58]}  Bd4+ {[%clk 0:00:31]} 22. Kh1 {[%clk 0:00:58]}  Bxe6 {[%clk 0:00:30]} 23. Qxe6+ {[%clk 0:00:57]}  Qxe6 {[%clk 0:00:29]} 24. Nxe6 {[%clk 0:00:58]}  Rxf1+ {[%clk 0:00:28]} 25. Bxf1 {[%clk 0:00:59]}  Nf6 {[%clk 0:00:18]} 26. cxd5 {[%clk 0:00:49]}  Nxd5 {[%clk 0:00:19]} 27. Nxd4 {[%clk 0:00:49]}  Ne3 {[%clk 0:00:16]} 28. Bxa6 {[%clk 0:00:45]}  cxd4 {[%clk 0:00:14]} 29. Bd3 {[%clk 0:00:37]}  Nd1 {[%clk 0:00:14]} 30. Kg1 {[%clk 0:00:30]}  Nxb2 {[%clk 0:00:15]} 31. Be4 {[%clk 0:00:30]}  Kf7 {[%clk 0:00:14]} 32. Kf2 {[%clk 0:00:30]}  b6 {[%clk 0:00:15]} 33. Ke2 {[%clk 0:00:30]}  Ke6 {[%clk 0:00:15]} 34. Kd2 {[%clk 0:00:28]}  Ke5 {[%clk 0:00:16]} 35. Bc2 {[%clk 0:00:27]}  Nc4+ {[%clk 0:00:16]} 36. Kd3 {[%clk 0:00:26]}  Ne3 {[%clk 0:00:16]} 37. Bb3 {[%clk 0:00:26]}  Nxg2 {[%clk 0:00:16]} 38. a4 {[%clk 0:00:25]}  Nf4+ {[%clk 0:00:14]} 39. Kc4 {[%clk 0:00:24]}  Nd5 {[%clk 0:00:12]} 40. Kb5 {[%clk 0:00:24]}  d3 {[%clk 0:00:12]} 41. Kc6 {[%clk 0:00:21]}  d2 {[%clk 0:00:10]} 42. Bd1 {[%clk 0:00:20]}  Nc3 {[%clk 0:00:10]} 43. Bc2 {[%clk 0:00:19]}  d1=Q {[%clk 0:00:09]} 44. Bxd1 {[%clk 0:00:19]}  Nxd1 {[%clk 0:00:10]} 45. Kxb6 {[%clk 0:00:20]}  Nb2 {[%clk 0:00:10]} 46. a5 {[%clk 0:00:19]}  Nc4+ {[%clk 0:00:11]} 47. Kb5 {[%clk 0:00:20]}  Nxa5 {[%clk 0:00:12]} 48. Kxa5 {[%clk 0:00:20]}  Kf4 {[%clk 0:00:12]} 0-1


[Site "https://www.chess.com"]

[Event "Titled Tuesday Blitz May 23 Early 2023"]
[White "Gutkin, Ilya"]
[Black "caropawn10"]
[WhiteFideId "16203470"]
[WhiteElo "2265"]
[BlackElo "2654"]
[Result "0-1"]
[Round "01"]
[TimeControl "180+2"]
[Date "2023.05.23"]
[WhiteClock "0:00:00"]
[BlackClock "0:00:14"]

1. Nf3 {[%clk 0:03:00]}  d5 {[%clk 0:02:59]} 2. g3 {[%clk 0:03:01]}  Nf6 {[%clk 0:02:57]} 3. Bg2 {[%clk 0:03:01]}  g6 {[%clk 0:02:57]} 4. c4 {[%clk 0:03:01]}  Bg7 {[%clk 0:02:58]} 5. cxd5 {[%clk 0:03:01]}  Nxd5 {[%clk 0:02:59]} 6. O-O {[%clk 0:03:01]}  O-O {[%clk 0:02:59]} 7. d4 {[%clk 0:03:01]}  Nc6 {[%clk 0:02:54]} 8. e4 {[%clk 0:02:57]}  Nb6 {[%clk 0:02:54]} 9. d5 {[%clk 0:02:56]}  Ne5 {[%clk 0:02:53]} 10. Nxe5 {[%clk 0:02:54]}  Bxe5 {[%clk 0:02:54]} 11. Nc3 {[%clk 0:02:51]}  Bg7 {[%clk 0:02:49]} 12. Qb3 {[%clk 0:02:45]}  e6 {[%clk 0:02:38]} 13. Rd1 {[%clk 0:02:33]}  exd5 {[%clk 0:02:36]} 14. Nxd5 {[%clk 0:02:31]}  Be6 {[%clk 0:02:26]} 15. Qf3 {[%clk 0:01:50]}  Nxd5 {[%clk 0:02:16]} 16. exd5 {[%clk 0:01:49]}  Bf5 {[%clk 0:02:17]} 17. Qb3 {[%clk 0:01:45]}  Rb8 {[%clk 0:02:06]} 18. Be3 {[%clk 0:01:33]}  a6 {[%clk 0:02:04]} 19. Rac1 {[%clk 0:01:32]}  Be5 {[%clk 0:01:58]} 20. Bd4 {[%clk 0:00:49]}  Qd6 {[%clk 0:01:37]} 21. Bc5 {[%clk 0:00:46]}  Qf6 {[%clk 0:01:29]} 22. Bxf8 {[%clk 0:00:45]}  Rxf8 {[%clk 0:01:30]} 23. Qxb7 {[%clk 0:00:42]}  Bxb2 {[%clk 0:01:21]} 24. Rc6 {[%clk 0:00:33]}  Qg7 {[%clk 0:01:08]} 25. Rxc7 {[%clk 0:00:23]}  Bg4 {[%clk 0:01:07]} 26. Rb1 {[%clk 0:00:19]}  Be5 {[%clk 0:01:05]} 27. Rcc1 {[%clk 0:00:17]}  h5 {[%clk 0:01:05]} 28. Re1 {[%clk 0:00:14]}  Bf5 {[%clk 0:00:53]} 29. Rbd1 {[%clk 0:00:12]}  Bc3 {[%clk 0:00:50]} 30. d6 {[%clk 0:00:11]}  Bxe1 {[%clk 0:00:49]} 31. Rxe1 {[%clk 0:00:12]}  Qc3 {[%clk 0:00:47]} 32. Rd1 {[%clk 0:00:12]}  Qc2 {[%clk 0:00:46]} 33. Qd5 {[%clk 0:00:10]}  Rd8 {[%clk 0:00:45]} 34. Qd2 {[%clk 0:00:08]}  Qc5 {[%clk 0:00:42]} 35. Bd5 {[%clk 0:00:07]}  Kg7 {[%clk 0:00:36]} 36. Bb3 {[%clk 0:00:07]}  Bg4 {[%clk 0:00:34]} 37. Qd4+ {[%clk 0:00:07]}  Qxd4 {[%clk 0:00:32]} 38. Rxd4 {[%clk 0:00:08]}  Kf6 {[%clk 0:00:32]} 39. f4 {[%clk 0:00:07]}  Be6 {[%clk 0:00:29]} 40. Kf2 {[%clk 0:00:04]}  a5 {[%clk 0:00:19]} 41. Ke3 {[%clk 0:00:03]}  Bxb3 {[%clk 0:00:19]} 42. axb3 {[%clk 0:00:03]}  Ke6 {[%clk 0:00:20]} 43. Kd3 {[%clk 0:00:02]}  Kd7 {[%clk 0:00:20]} 44. Kc4 {[%clk 0:00:02]}  Rb8 {[%clk 0:00:20]} 45. Rd5 {[%clk 0:00:02]}  Rb4+ {[%clk 0:00:18]} 46. Kc3 {[%clk 0:00:03]}  Re4 {[%clk 0:00:19]} 47. Rd3 {[%clk 0:00:01]}  a4 {[%clk 0:00:14]} 48. Rd4 {[%clk 0:00:00]}  Rxd4 {[%clk 0:00:14]} 0-1


[Site "https://www.chess.com"]

[Event "Titled Tuesday Blitz May 23 Early 2023"]
[White "Fantinel, Thibault"]
[Black "Rodriguez Santiago, Jaime"]
[WhiteFideId "663395"]
[BlackFideId "3100898"]
[WhiteElo "2316"]
[BlackElo "2025"]
[Result "0-1"]
[Round "01"]
[TimeControl "180+2"]
[Date "2023.05.23"]
[WhiteClock "0:00:48"]
[BlackClock "0:01:01"]

1. c4 {[%clk 0:02:58]}  Nf6 {[%clk 0:02:54]} 2. g3 {[%clk 0:02:55]}  e5 {[%clk 0:02:48]} 3. Bg2 {[%clk 0:02:53]}  h6 {[%clk 0:02:48]} 4. Nc3 {[%clk 0:02:51]}  Bb4 {[%clk 0:02:48]} 5. e4 {[%clk 0:02:51]}  Bxc3 {[%clk 0:02:47]} 6. bxc3 {[%clk 0:02:52]}  O-O {[%clk 0:02:47]} 7. Ne2 {[%clk 0:02:52]}  d6 {[%clk 0:02:47]} 8. O-O {[%clk 0:02:53]}  Nc6 {[%clk 0:02:40]} 9. d3 {[%clk 0:02:51]}  a5 {[%clk 0:02:38]} 10. h3 {[%clk 0:02:46]}  Nd7 {[%clk 0:02:25]} 11. g4 {[%clk 0:02:28]}  Nc5 {[%clk 0:02:18]} 12. f4 {[%clk 0:02:23]}  exf4 {[%clk 0:02:15]} 13. Nxf4 {[%clk 0:02:23]}  Qh4 {[%clk 0:02:05]} 14. Rb1 {[%clk 0:02:03]}  Ne5 {[%clk 0:01:39]} 15. d4 {[%clk 0:01:37]}  Bxg4 {[%clk 0:01:37]} 16. hxg4 {[%clk 0:01:31]}  Nxg4 {[%clk 0:01:36]} 17. Nh3 {[%clk 0:01:28]}  Nxe4 {[%clk 0:01:12]} 18. Bxe4 {[%clk 0:00:48]}  Qg3+ {[%clk 0:01:01]} 0-1


[Site "https://www.chess.com"]

[Event "Titled Tuesday Blitz May 23 Early 2023"]
[White "Dishman, Stephen"]
[Black "Schnaider, Ilan"]
[WhiteFideId "403024"]
[BlackFideId "169013"]
[WhiteElo "2204"]
[BlackElo "2224"]
[Result "0-1"]
[Round "01"]
[TimeControl "180+2"]
[Date "2023.05.23"]
[WhiteClock "0:00:04"]
[BlackClock "0:00:09"]

1. c4 {[%clk 0:03:00]}  Nf6 {[%clk 0:02:57]} 2. g3 {[%clk 0:03:00]}  g6 {[%clk 0:02:54]} 3. b3 {[%clk 0:03:00]}  Bg7 {[%clk 0:02:52]} 4. Bb2 {[%clk 0:03:00]}  O-O {[%clk 0:02:53]} 5. Nf3 {[%clk 0:02:59]}  c6 {[%clk 0:02:53]} 6. Bg2 {[%clk 0:02:59]}  d5 {[%clk 0:02:54]} 7. O-O {[%clk 0:02:58]}  Bf5 {[%clk 0:02:52]} 8. d3 {[%clk 0:02:58]}  Nbd7 {[%clk 0:02:49]} 9. Nbd2 {[%clk 0:02:57]}  Qc7 {[%clk 0:02:47]} 10. Qc2 {[%clk 0:02:51]}  dxc4 {[%clk 0:02:23]} 11. Nxc4 {[%clk 0:02:49]}  Rfe8 {[%clk 0:02:21]} 12. Nce5 {[%clk 0:02:44]}  Rad8 {[%clk 0:02:21]} 13. Rac1 {[%clk 0:02:41]}  Qa5 {[%clk 0:02:04]} 14. a3 {[%clk 0:02:38]}  Nxe5 {[%clk 0:02:00]} 15. Nxe5 {[%clk 0:02:38]}  Be6 {[%clk 0:01:53]} 16. b4 {[%clk 0:02:34]}  Qc7 {[%clk 0:01:50]} 17. b5 {[%clk 0:02:29]}  Bd5 {[%clk 0:01:37]} 18. bxc6 {[%clk 0:02:26]}  Bxg2 {[%clk 0:01:34]} 19. Kxg2 {[%clk 0:02:24]}  bxc6 {[%clk 0:01:34]} 20. Qxc6 {[%clk 0:02:20]}  Qa5 {[%clk 0:01:30]} 21. Qc4 {[%clk 0:02:10]}  e6 {[%clk 0:01:29]} 22. Nc6 {[%clk 0:02:09]}  Qd5+ {[%clk 0:01:22]} 23. Qxd5 {[%clk 0:02:07]}  Rxd5 {[%clk 0:01:23]} 24. Rc2 {[%clk 0:01:54]}  a5 {[%clk 0:01:16]} 25. Rfc1 {[%clk 0:01:47]}  Nd7 {[%clk 0:01:06]} 26. Bxg7 {[%clk 0:01:44]}  Kxg7 {[%clk 0:01:07]} 27. d4 {[%clk 0:01:36]}  Rb5 {[%clk 0:01:01]} 28. e3 {[%clk 0:01:31]}  e5 {[%clk 0:00:42]} 29. Nxe5 {[%clk 0:01:30]}  Nxe5 {[%clk 0:00:43]} 30. dxe5 {[%clk 0:01:30]}  Rexe5 {[%clk 0:00:41]} 31. Rc4 {[%clk 0:01:19]}  Rb2 {[%clk 0:00:37]} 32. R1c3 {[%clk 0:01:16]}  Ra2 {[%clk 0:00:35]} 33. g4 {[%clk 0:01:08]}  h6 {[%clk 0:00:32]} 34. Rc7 {[%clk 0:01:06]}  Re6 {[%clk 0:00:29]} 35. Kg3 {[%clk 0:01:01]}  Rf6 {[%clk 0:00:25]} 36. f4 {[%clk 0:00:59]}  Rd6 {[%clk 0:00:25]} 37. Rb7 {[%clk 0:00:54]}  Re6 {[%clk 0:00:17]} 38. Ra7 {[%clk 0:00:55]}  Re2 {[%clk 0:00:14]} 39. h4 {[%clk 0:00:55]}  R6xe3+ {[%clk 0:00:14]} 40. Rxe3 {[%clk 0:00:54]}  Rxe3+ {[%clk 0:00:15]} 41. Kf2 {[%clk 0:00:54]}  Rxa3 {[%clk 0:00:16]} 42. g5 {[%clk 0:00:52]}  hxg5 {[%clk 0:00:15]} 43. hxg5 {[%clk 0:00:52]}  a4 {[%clk 0:00:14]} 44. Kg2 {[%clk 0:00:51]}  Kf8 {[%clk 0:00:15]} 45. Ra8+ {[%clk 0:00:47]}  Ke7 {[%clk 0:00:15]} 46. Ra7+ {[%clk 0:00:38]}  Ke6 {[%clk 0:00:16]} 47. Ra6+ {[%clk 0:00:38]}  Kd5 {[%clk 0:00:16]} 48. Rf6 {[%clk 0:00:37]}  Rb3 {[%clk 0:00:09]} 49. Rxf7 {[%clk 0:00:37]}  a3 {[%clk 0:00:09]} 50. Ra7 {[%clk 0:00:34]}  Ke4 {[%clk 0:00:09]} 51. Ra4+ {[%clk 0:00:33]}  Kf5 {[%clk 0:00:09]} 52. Kh2 {[%clk 0:00:31]}  Kg4 {[%clk 0:00:09]} 53. f5+ {[%clk 0:00:19]}  Kxf5 {[%clk 0:00:09]} 54. Ra5+ {[%clk 0:00:17]}  Kg4 {[%clk 0:00:09]} 55. Ra4+ {[%clk 0:00:16]}  Kxg5 {[%clk 0:00:09]} 56. Ra5+ {[%clk 0:00:17]}  Kg4 {[%clk 0:00:06]} 57. Ra4+ {[%clk 0:00:17]}  Kh5 {[%clk 0:00:07]} 58. Ra5+ {[%clk 0:00:15]}  g5 {[%clk 0:00:07]} 59. Ra8 {[%clk 0:00:15]}  Kh4 {[%clk 0:00:07]} 60. Rh8+ {[%clk 0:00:13]}  Kg4 {[%clk 0:00:07]} 61. Ra8 {[%clk 0:00:12]}  Rb2+ {[%clk 0:00:08]} 62. Kg1 {[%clk 0:00:11]}  a2 {[%clk 0:00:08]} 63. Ra4+ {[%clk 0:00:04]}  Kh5 {[%clk 0:00:09]} 0-1


[Site "https://www.chess.com"]

[Event "Titled Tuesday Blitz May 23 Early 2023"]
[White "Ilkhomi, Jaloliddin"]
[Black "Ovezdurdyyeva, Jemal"]
[WhiteFideId "14700948"]
[BlackFideId "14001888"]
[WhiteElo "2045"]
[BlackElo "2043"]
[Result "1-0"]
[Round "01"]
[TimeControl "180+2"]
[Date "2023.05.23"]
[WhiteClock "0:01:15"]
[BlackClock "0:01:03"]

1. d4 {[%clk 0:02:55]}  Nf6 {[%clk 0:02:59]} 2. Nf3 {[%clk 0:02:55]}  e6 {[%clk 0:02:57]} 3. c3 {[%clk 0:02:54]}  d5 {[%clk 0:02:55]} 4. Bf4 {[%clk 0:02:54]}  c5 {[%clk 0:02:50]} 5. e3 {[%clk 0:02:55]}  Nc6 {[%clk 0:02:50]} 6. Nbd2 {[%clk 0:02:55]}  Bd6 {[%clk 0:02:50]} 7. Bg3 {[%clk 0:02:55]}  O-O {[%clk 0:02:50]} 8. Bd3 {[%clk 0:02:55]}  a6 {[%clk 0:02:48]} 9. Ne5 {[%clk 0:02:55]}  Qc7 {[%clk 0:02:46]} 10. f4 {[%clk 0:02:54]}  Nd7 {[%clk 0:02:38]} 11. Ndf3 {[%clk 0:02:51]}  f6 {[%clk 0:02:38]} 12. Nxc6 {[%clk 0:02:46]}  bxc6 {[%clk 0:02:36]} 13. O-O {[%clk 0:02:46]}  Bb7 {[%clk 0:02:33]} 14. Qc2 {[%clk 0:02:40]}  g6 {[%clk 0:02:29]} 15. Rae1 {[%clk 0:02:19]}  Rf7 {[%clk 0:02:23]} 16. Qd2 {[%clk 0:02:15]}  Raf8 {[%clk 0:02:23]} 17. e4 {[%clk 0:02:15]}  cxd4 {[%clk 0:02:16]} 18. Nxd4 {[%clk 0:02:15]}  Nc5 {[%clk 0:02:13]} 19. Bc2 {[%clk 0:02:05]}  dxe4 {[%clk 0:02:11]} 20. b4 {[%clk 0:02:04]}  Nd3 {[%clk 0:01:49]} 21. Rxe4 {[%clk 0:02:04]}  e5 {[%clk 0:01:45]} 22. Bxd3 {[%clk 0:01:54]}  exd4 {[%clk 0:01:45]} 23. Bc4 {[%clk 0:01:55]}  c5 {[%clk 0:01:42]} 24. Bxf7+ {[%clk 0:01:53]}  Kxf7 {[%clk 0:01:35]} 25. Ree1 {[%clk 0:01:50]}  dxc3 {[%clk 0:01:33]} 26. Qxc3 {[%clk 0:01:50]}  Qc6 {[%clk 0:01:30]} 27. Re2 {[%clk 0:01:43]}  cxb4 {[%clk 0:01:27]} 28. Qxc6 {[%clk 0:01:42]}  Bxc6 {[%clk 0:01:28]} 29. Rc1 {[%clk 0:01:42]}  Bb5 {[%clk 0:01:28]} 30. Rd2 {[%clk 0:01:42]}  Rd8 {[%clk 0:01:23]} 31. Bf2 {[%clk 0:01:42]}  Ke7 {[%clk 0:01:22]} 32. Bb6 {[%clk 0:01:40]}  Rd7 {[%clk 0:01:20]} 33. Re1+ {[%clk 0:01:40]}  Kf7 {[%clk 0:01:19]} 34. Red1 {[%clk 0:01:38]}  Ke6 {[%clk 0:01:17]} 35. Re1+ {[%clk 0:01:28]}  Kf5 {[%clk 0:01:14]} 36. Red1 {[%clk 0:01:23]}  Ke6 {[%clk 0:01:13]} 37. Kh1 {[%clk 0:01:23]}  Bxf4 {[%clk 0:01:09]} 38. Re1+ {[%clk 0:01:17]}  Kf7 {[%clk 0:01:07]} 39. Rxd7+ {[%clk 0:01:15]}  Bxd7 {[%clk 0:01:08]} 40. Bc5 {[%clk 0:01:16]}  a5 {[%clk 0:01:03]} 41. Re7+ {[%clk 0:01:15]} 1-0


[Site "https://www.chess.com"]

[Event "Titled Tuesday Blitz May 23 Early 2023"]
[White "FREDERICKtheMATE"]
[Black "Arabidze, Meri"]
[BlackFideId "13604040"]
[WhiteElo "2325"]
[BlackElo "2405"]
[Result "1-0"]
[Round "01"]
[TimeControl "180+2"]
[Date "2023.05.23"]
[WhiteClock "0:00:14"]
[BlackClock "0:00:00"]

1. e4 {[%clk 0:02:59]}  c5 {[%clk 0:03:00]} 2. Nf3 {[%clk 0:02:59]}  e6 {[%clk 0:03:00]} 3. c3 {[%clk 0:02:58]}  d5 {[%clk 0:03:00]} 4. exd5 {[%clk 0:02:58]}  exd5 {[%clk 0:03:01]} 5. d4 {[%clk 0:02:59]}  Nc6 {[%clk 0:03:01]} 6. Bb5 {[%clk 0:02:58]}  Bd6 {[%clk 0:03:00]} 7. dxc5 {[%clk 0:02:57]}  Bxc5 {[%clk 0:03:01]} 8. O-O {[%clk 0:02:57]}  Ne7 {[%clk 0:03:02]} 9. Re1 {[%clk 0:02:57]}  O-O {[%clk 0:03:02]} 10. Be3 {[%clk 0:02:55]}  Bd6 {[%clk 0:02:53]} 11. Nbd2 {[%clk 0:02:52]}  Bg4 {[%clk 0:02:53]} 12. h3 {[%clk 0:02:52]}  Bh5 {[%clk 0:02:53]} 13. Bd3 {[%clk 0:02:51]}  Bg6 {[%clk 0:02:38]} 14. Nb3 {[%clk 0:02:48]}  Be4 {[%clk 0:02:35]} 15. Ng5 {[%clk 0:02:37]}  Bxd3 {[%clk 0:02:22]} 16. Qxd3 {[%clk 0:02:36]}  Ng6 {[%clk 0:02:22]} 17. Rad1 {[%clk 0:02:32]}  Nce7 {[%clk 0:02:14]} 18. Nf3 {[%clk 0:02:26]}  a6 {[%clk 0:02:12]} 19. Nbd4 {[%clk 0:02:22]}  Rc8 {[%clk 0:02:08]} 20. Nf5 {[%clk 0:02:19]}  Nxf5 {[%clk 0:02:02]} 21. Qxf5 {[%clk 0:02:18]}  Ne7 {[%clk 0:02:03]} 22. Qd3 {[%clk 0:02:16]}  h6 {[%clk 0:02:00]} 23. Nd4 {[%clk 0:02:14]}  Qa5 {[%clk 0:01:57]} 24. a3 {[%clk 0:02:12]}  Rfd8 {[%clk 0:01:56]} 25. Nf5 {[%clk 0:02:09]}  Nxf5 {[%clk 0:01:48]} 26. Qxf5 {[%clk 0:02:08]}  Bf8 {[%clk 0:01:30]} 27. Bd4 {[%clk 0:02:02]}  Rc6 {[%clk 0:01:26]} 28. Re2 {[%clk 0:01:58]}  Qc7 {[%clk 0:01:10]} 29. Rde1 {[%clk 0:01:51]}  Qc8 {[%clk 0:01:10]} 30. Qxc8 {[%clk 0:01:41]}  Rdxc8 {[%clk 0:01:10]} 31. f4 {[%clk 0:01:30]}  f6 {[%clk 0:01:10]} 32. f5 {[%clk 0:01:30]}  Kf7 {[%clk 0:01:10]} 33. g4 {[%clk 0:01:26]}  b5 {[%clk 0:01:05]} 34. Re6 {[%clk 0:01:20]}  a5 {[%clk 0:01:03]} 35. b4 {[%clk 0:01:19]}  a4 {[%clk 0:00:59]} 36. Kf2 {[%clk 0:01:17]}  Bd6 {[%clk 0:00:59]} 37. Kf3 {[%clk 0:01:15]}  Be5 {[%clk 0:00:58]} 38. Rxc6 {[%clk 0:00:58]}  Rxc6 {[%clk 0:00:58]} 39. Bc5 {[%clk 0:00:58]}  Bxc3 {[%clk 0:00:52]} 40. Re7+ {[%clk 0:00:57]}  Kg8 {[%clk 0:00:53]} 41. Re8+ {[%clk 0:00:54]}  Kh7 {[%clk 0:00:52]} 42. Rb8 {[%clk 0:00:53]}  Bb2 {[%clk 0:00:52]} 43. Rxb5 {[%clk 0:00:52]}  Bxa3 {[%clk 0:00:52]} 44. Ra5 {[%clk 0:00:52]}  Bb2 {[%clk 0:00:40]} 45. Rxa4 {[%clk 0:00:51]}  Rc8 {[%clk 0:00:37]} 46. Ra7 {[%clk 0:00:47]}  d4 {[%clk 0:00:25]} 47. Ke4 {[%clk 0:00:43]}  Re8+ {[%clk 0:00:24]} 48. Re7 {[%clk 0:00:42]}  Rb8 {[%clk 0:00:19]} 49. Kd3 {[%clk 0:00:37]}  Bc3 {[%clk 0:00:19]} 50. Kc4 {[%clk 0:00:36]}  Rd8 {[%clk 0:00:19]} 51. Bb6 {[%clk 0:00:27]}  Rb8 {[%clk 0:00:17]} 52. Bc5 {[%clk 0:00:27]}  Rd8 {[%clk 0:00:17]} 53. Ra7 {[%clk 0:00:21]}  d3 {[%clk 0:00:12]} 54. Kxc3 {[%clk 0:00:20]}  d2 {[%clk 0:00:13]} 55. Ra1 {[%clk 0:00:20]}  d1=Q {[%clk 0:00:13]} 56. Rxd1 {[%clk 0:00:19]}  Rxd1 {[%clk 0:00:14]} 57. b5 {[%clk 0:00:20]}  Rc1+ {[%clk 0:00:14]} 58. Kb4 {[%clk 0:00:20]}  Rb1+ {[%clk 0:00:14]} 59. Ka5 {[%clk 0:00:20]}  g6 {[%clk 0:00:14]} 60. b6 {[%clk 0:00:19]}  h5 {[%clk 0:00:14]} 61. Bb4 {[%clk 0:00:18]}  Rd1 {[%clk 0:00:12]} 62. b7 {[%clk 0:00:18]}  Rd8 {[%clk 0:00:12]} 63. Be7 {[%clk 0:00:16]}  Rb8 {[%clk 0:00:11]} 64. Kb6 {[%clk 0:00:16]}  hxg4 {[%clk 0:00:10]} 65. hxg4 {[%clk 0:00:15]}  gxf5 {[%clk 0:00:10]} 66. gxf5 {[%clk 0:00:15]}  Kh6 {[%clk 0:00:07]} 67. Bxf6 {[%clk 0:00:14]}  Rf8 {[%clk 0:00:05]} 68. Be7 {[%clk 0:00:14]}  Re8 {[%clk 0:00:02]} 69. f6 {[%clk 0:00:14]}  Kg6 {[%clk 0:00:02]} 70. Kc7 {[%clk 0:00:14]}  Kf7 {[%clk 0:00:00]} 71. b8=Q {[%clk 0:00:14]} 1-0


[Site "https://www.chess.com"]

[Event "Titled Tuesday Blitz May 23 Early 2023"]
[White "Weishaeutel, Moritz"]
[Black "Theytookourjobs"]
[WhiteFideId "12967300"]
[WhiteElo "2301"]
[BlackElo "2325"]
[Result "1-0"]
[Round "01"]
[TimeControl "180+2"]
[Date "2023.05.23"]
[WhiteClock "0:00:12"]
[BlackClock "0:00:02"]

1. e4 {[%clk 0:03:00]}  e6 {[%clk 0:03:00]} 2. d4 {[%clk 0:03:00]}  d5 {[%clk 0:03:00]} 3. exd5 {[%clk 0:03:01]}  exd5 {[%clk 0:03:01]} 4. Nf3 {[%clk 0:03:02]}  Bd6 {[%clk 0:03:01]} 5. c4 {[%clk 0:03:01]}  Bb4+ {[%clk 0:03:00]} 6. Nc3 {[%clk 0:03:01]}  Nf6 {[%clk 0:03:01]} 7. Qb3 {[%clk 0:02:56]}  Nc6 {[%clk 0:02:56]} 8. cxd5 {[%clk 0:02:52]}  Nxd5 {[%clk 0:02:18]} 9. Bg5 {[%clk 0:02:51]}  Qd6 {[%clk 0:01:52]} 10. O-O-O {[%clk 0:02:45]}  Nxc3 {[%clk 0:01:29]} 11. bxc3 {[%clk 0:02:45]}  Ba3+ {[%clk 0:01:21]} 12. Kb1 {[%clk 0:02:46]}  Bf5+ {[%clk 0:01:10]} 13. Bd3 {[%clk 0:02:40]}  Bxd3+ {[%clk 0:01:09]} 14. Rxd3 {[%clk 0:02:41]}  O-O {[%clk 0:01:09]} 15. Rhd1 {[%clk 0:02:15]}  b5 {[%clk 0:01:04]} 16. Bh4 {[%clk 0:01:53]}  Na5 {[%clk 0:01:03]} 17. Qc2 {[%clk 0:01:48]}  Nc4 {[%clk 0:01:00]} 18. Nd2 {[%clk 0:01:46]}  Qg6 {[%clk 0:00:58]} 19. Rg3 {[%clk 0:01:34]}  Qh5 {[%clk 0:00:53]} 20. Bf6 {[%clk 0:01:30]}  g6 {[%clk 0:00:45]} 21. Ne4 {[%clk 0:01:26]}  Bd6 {[%clk 0:00:43]} 22. Be5 {[%clk 0:01:09]}  f5 {[%clk 0:00:29]} 23. Qb3 {[%clk 0:00:16]}  fxe4 {[%clk 0:00:23]} 24. Rh3 {[%clk 0:00:16]}  Qf5 {[%clk 0:00:15]} 25. Bxd6 {[%clk 0:00:15]}  cxd6 {[%clk 0:00:15]} 26. Ka1 {[%clk 0:00:16]}  a5 {[%clk 0:00:12]} 27. a4 {[%clk 0:00:16]}  d5 {[%clk 0:00:11]} 28. axb5 {[%clk 0:00:16]}  a4 {[%clk 0:00:12]} 29. Qb4 {[%clk 0:00:16]}  a3 {[%clk 0:00:12]} 30. Qe7 {[%clk 0:00:16]}  Rf7 {[%clk 0:00:12]} 31. Qc5 {[%clk 0:00:16]}  Qxf2 {[%clk 0:00:11]} 32. Rb1 {[%clk 0:00:14]}  Qc2 {[%clk 0:00:11]} 33. Qxd5 {[%clk 0:00:12]}  Qxc3+ {[%clk 0:00:02]} 34. Rxc3 {[%clk 0:00:12]} 1-0


[Site "https://www.chess.com"]

[Event "Titled Tuesday Blitz May 23 Early 2023"]
[White "Iskusnyh, Sergei"]
[Black "Kovacsy, Barnabas"]
[WhiteFideId "4120027"]
[BlackFideId "769290"]
[WhiteElo "2492"]
[BlackElo "2130"]
[Result "1-0"]
[Round "01"]
[TimeControl "180+2"]
[Date "2023.05.23"]
[WhiteClock "0:01:25"]
[BlackClock "0:00:03"]

1. d4 {[%clk 0:02:59]}  Nf6 {[%clk 0:02:58]} 2. c4 {[%clk 0:02:59]}  g6 {[%clk 0:02:55]} 3. g3 {[%clk 0:02:59]}  c6 {[%clk 0:02:50]} 4. Bg2 {[%clk 0:03:00]}  d5 {[%clk 0:02:50]} 5. e3 {[%clk 0:03:00]}  Bg7 {[%clk 0:02:49]} 6. Ne2 {[%clk 0:03:00]}  O-O {[%clk 0:02:49]} 7. O-O {[%clk 0:02:59]}  dxc4 {[%clk 0:02:44]} 8. Na3 {[%clk 0:02:58]}  Be6 {[%clk 0:02:27]} 9. Qc2 {[%clk 0:02:36]}  Qc8 {[%clk 0:02:07]} 10. Nf4 {[%clk 0:02:30]}  Na6 {[%clk 0:01:34]} 11. Nxe6 {[%clk 0:02:29]}  Qxe6 {[%clk 0:01:33]} 12. Qxc4 {[%clk 0:02:28]}  Qd7 {[%clk 0:01:27]} 13. Bd2 {[%clk 0:02:22]}  Nd5 {[%clk 0:01:15]} 14. Rfd1 {[%clk 0:02:19]}  h5 {[%clk 0:01:13]} 15. Qb3 {[%clk 0:02:13]}  h4 {[%clk 0:01:08]} 16. Nc4 {[%clk 0:02:12]}  Rab8 {[%clk 0:00:48]} 17. e4 {[%clk 0:02:06]}  Nb6 {[%clk 0:00:38]} 18. Bf4 {[%clk 0:01:54]}  Nxc4 {[%clk 0:00:37]} 19. Bxb8 {[%clk 0:01:38]}  b5 {[%clk 0:00:37]} 20. Bf4 {[%clk 0:01:33]}  Bxd4 {[%clk 0:00:35]} 21. e5 {[%clk 0:01:27]}  c5 {[%clk 0:00:30]} 22. a4 {[%clk 0:01:26]}  Na5 {[%clk 0:00:03]} 23. Qxb5 {[%clk 0:01:25]} 1-0


[Site "https://www.chess.com"]